bitfinex-derivatives/quotes_SOLF0:USTF0_20241025
["timestamp","ask_amount","ask_price","bid_price","bid_amount"]
[1729867830594,4.1976,176.26,176.17,5.48]
[1729867830882,2.8389,176.21,176.17,5.48]
[1729867831283,2.8389,176.21,176.17,8.3194]
[1729867831874,4.1976,176.26,176.17,8.3194]
[1729867831875,4.1976,176.26,176.17,5.48]
[1729867832884,21.84415217,176.33,176.17,5.48]
[1729867833082,61.32,176.45,176.25,21.84415217]
[1729867833083,4.3052,176.36,176.25,21.84415217]
[1729867833285,4.3052,176.36,176.26,5.48]
[1729867833785,2.8367,176.34,176.29,2.8374]
[1729867834172,2.8368,176.33,176.28,2.8375]
[1729867834377,4.3052,176.36,176.27,21.84415217]
[1729867835573,2.8368,176.34,176.29,2.8373]
[1729867835780,4.3052,176.36,176.26,5.48]
[1729867835984,4.3052,176.36,176.28,2.8376]
[1729867835985,2.8368,176.33,176.28,2.8376]
[1729867836382,2.8368,176.33,176.28,8.3176]
[1729867836783,4.3052,176.36,176.3,2.8372]
[1729867836784,2.8365,176.35,176.3,2.8372]
[1729867836983,2.8365,176.35,176.28,5.48]
[1729867837380,2.8365,176.35,176.3,2.8373]
[1729867838383,1.4843,176.36,176.3,2.8373]
[1729867838587,2.8367,176.34,176.3,2.8373]
[1729867839190,2.8367,176.34,176.25,1.408]
[1729867839191,1.4843,176.36,176.29,5.48]
[1729867839389,1.3929,176.35,176.25,21.84415217]
[1729867839585,1.3929,176.35,176.24,1.3736]
[1729867839586,2.8376,176.29,176.24,2.8383]
[1729867839889,2.8376,176.29,176.25,5.48]
[1729867840086,8.2759,176.35,176.25,5.48]
[1729867840286,8.2759,176.35,176.23,2.8384]
[1729867840287,2.8378,176.28,176.23,2.8384]
[1729867840488,8.2759,176.35,176.23,5.48]
[1729867840489,21.84415217,176.3,176.23,5.48]
[1729867840686,2.8384,176.24,176.19,8.319]
[1729867840890,21.84415217,176.28,176.19,5.48]
[1729867841087,4.2263,176.27,176.19,5.48]
[1729867841790,2.8384,176.24,176.2,2.8389]
[1729867841980,1.3847,176.27,176.19,5.48]
[1729867842182,5.48,176.3,176.2,21.84415217]
[1729867842597,2.8379,176.27,176.22,2.8384]
[1729867842797,5.48,176.3,176.2,21.84415217]
[1729867843000,27.32415217,176.34,176.2,21.84415217]
[1729867843295,2.8374,176.3,176.21,2.8387]
[1729867843496,21.84415217,176.31,176.21,5.48]
[1729867843886,2.8382,176.25,176.21,5.48]
[1729867845096,21.84415217,176.31,176.21,5.48]
[1729867845298,2.8383,176.24,176.21,5.48]
[1729867845890,21.84415217,176.28,176.19,5.48]
[1729867846091,1.4731,176.27,176.19,5.48]
[1729867846301,1.4731,176.27,176.19,8.3191]
[1729867846302,2.8386,176.23,176.19,8.3191]
[1729867846496,1.4731,176.27,176.19,5.48]
[1729867847001,21.84415217,176.33,176.2,21.84415217]
[1729867847200,5.46,176.34,176.23,21.84415217]
[1729867847606,5.46,176.34,176.24,5.46]
[1729867848105,5.46,176.34,176.24,8.2981]
[1729867848499,2.8376,176.29,176.24,8.2981]
[1729867848703,2.8376,176.29,176.25,2.8381]
[1729867849207,1.4731,176.35,176.24,5.46]
[1729867849407,2.8376,176.29,176.24,8.2981]
[1729867851206,2.8377,176.28,176.24,8.2981]
[1729867852203,2.8377,176.28,176.24,2.8381]
[1729867852405,21.84415217,176.33,176.22,5.46]
[1729867852906,1.4731,176.35,176.22,27.30415217]
[1729867853807,2.8376,176.29,176.22,27.30415217]
[1729867854005,1.4731,176.35,176.22,27.30415217]
[1729867854510,1.4731,176.35,176.24,2.8382]
[1729867855103,2.8376,176.28,176.22,27.30415217]
[1729867855303,1.4731,176.35,176.23,2.8384]
[1729867855613,1.4731,176.35,176.22,27.30415217]
[1729867855614,21.84415217,176.33,176.22,27.30415217]
[1729867856213,2.8381,176.26,176.22,27.30415217]
[1729867856912,2.8381,176.26,176.22,30.14255217]
[1729867857717,21.84415217,176.33,176.22,30.14255217]
[1729867857904,2.8381,176.25,176.22,30.14255217]
[1729867860204,2.8381,176.25,176.23,2.8384]
[1729867860601,2.8377,176.28,176.22,19.08196567]
[1729867860803,13.62196567,176.32,176.23,2.8384]
[1729867861306,13.62196567,176.3,176.2,17.93376567]
[1729867861509,1.4731,176.35,176.2,5.46]
[1729867861510,13.62196567,176.26,176.2,5.46]
[1729867861825,13.62196567,176.22,176.16,233.00283]
[1729867862108,16.45206979,176.29,176.16,233.00283]
[1729867862109,13.62196567,176.19,176.16,233.00283]
[1729867862305,2.8394,176.17,176.16,233.00283]
[1729867862504,2.8394,176.17,176.16,226.79153]
[1729867863908,2.8385,176.23,176.17,2.8394]
[1729867864104,2.7542,176.25,176.17,21.83150947]
[1729867864305,21.83150947,176.31,176.17,21.83150947]
[1729867864510,5.46,176.32,176.21,2.8386]
[1729867864511,2.8379,176.27,176.21,2.8386]
[1729867864823,8.2649,176.32,176.22,5.46]
[1729867865317,2.8049,176.32,176.2,21.83150947]
[1729867865509,2.8049,176.32,176.21,5.46]
[1729867865910,2.838,176.26,176.21,8.2987]
[1729867866215,21.83150947,176.31,176.19,5.46]
[1729867866719,2.8049,176.32,176.19,8.2989]
[1729867866720,21.83150947,176.29,176.19,8.2989]
[1729867867013,21.83150947,176.29,176.17,4.1833]
[1729867867014,27.29150947,176.29,176.17,4.1833]
[1729867867317,27.29150947,176.29,176.18,5.46]
[1729867867713,1.3469,176.28,176.18,8.2991]
[1729867868719,1.3469,176.28,176.21,2.8387]
[1729867868720,2.8381,176.26,176.21,2.8387]
[1729867868920,1.3469,176.28,176.18,27.29150947]
[1729867869223,2.8377,176.28,176.23,2.8384]
[1729867869406,5.46,176.31,176.23,5.46]
[1729867869819,2.8377,176.28,176.24,2.8382]
[1729867870017,21.83150947,176.34,176.23,5.46]
[1729867870413,2.8372,176.31,176.25,2.838]
[1729867870616,21.83150947,176.34,176.23,5.46]
[1729867871016,2.8374,176.3,176.25,2.838]
[1729867871220,2.8374,176.3,176.23,5.46]
[1729867871221,21.83150947,176.34,176.23,5.46]
[1729867871618,2.8372,176.31,176.26,2.8379]
[1729867872213,2.8375,176.29,176.24,2.8381]
[1729867873219,2.8375,176.29,176.23,5.46]
[1729867873426,2.8377,176.28,176.23,5.46]
[1729867873815,21.83150947,176.34,176.23,8.2984]
[1729867874216,21.83150947,176.34,176.23,5.46]
[1729867874415,21.83150947,176.34,176.24,2.8381]
[1729867874621,21.83150947,176.34,176.21,21.83150947]
[1729867874822,21.83150947,176.34,176.22,5.46]
[1729867875026,21.83150947,176.32,176.22,5.46]
[1729867875322,21.83150947,176.32,176.22,8.2986]
[1729867875627,21.83150947,176.32,176.22,5.46]
[1729867876320,2.8383,176.24,176.22,5.46]
[1729867876621,2.8383,176.24,176.21,5.46]
[1729867877321,21.83150947,176.23,176.16,226.79153]
[1729867877721,21.83150947,176.21,176.16,226.79153]
[1729867877923,2.8394,176.17,176.16,220.12303]
[1729867878126,2.8394,176.17,176.16,116.38052377]
[1729867878332,2.8394,176.17,176.16,94.60746501]
[1729867882716,24.67090947,176.17,176.16,0.14765878]
[1729867882922,21.83150947,176.17,176.05,1.4086]
[1729867883218,21.83150947,176.17,176.06,2.841]
[1729867883421,27.29150947,176.17,176.05,23.24010947]
[1729867883728,337.0,176.22,176.09,2.8406]
[1729867883729,2.84,176.14,176.09,2.8406]
[1729867883919,27.29150947,176.19,176.05,23.24010947]
[1729867884323,2.8402,176.13,176.08,2.8407]
[1729867884925,2.8404,176.11,176.06,2.8411]
[1729867885115,5.46,176.19,176.05,6.8686]
[1729867885116,21.83150947,176.14,176.05,6.8686]
[1729867885927,21.83150947,176.17,176.05,28.70010947]
[1729867886128,5.46,176.19,176.05,28.70010947]
[1729867886323,13.64310388,176.17,176.06,13.64310388]
[1729867886924,2.8399,176.14,176.09,2.8406]
[1729867887335,13.64310388,176.17,176.06,13.64310388]
[1729867887527,13.64310388,176.17,176.08,2.8408]
[1729867888032,2.8399,176.14,176.09,2.8406]
[1729867888623,2.8396,176.16,176.12,2.8401]
[1729867888825,13.64310388,176.21,176.11,1.4001]
[1729867889332,2.8395,176.17,176.13,2.84]
[1729867889724,13.64310388,176.21,176.11,1.4001]
[1729867889930,2.8396,176.16,176.12,2.8401]
[1729867890328,13.64310388,176.21,176.12,2.8401]
[1729867890633,13.64310388,176.17,176.11,1.4001]
[1729867891024,2.8402,176.12,176.11,1.4001]
[1729867892826,2.8394,176.18,176.13,2.8399]
[1729867893027,13.64310388,176.24,176.13,13.64310388]
[1729867893234,19.10310388,176.24,176.14,1.5545]
[1729867893531,13.64310388,176.21,176.14,1.5545]
[1729867893734,13.64310388,176.19,176.11,1.4001]
[1729867893926,2.8402,176.13,176.11,1.4001]
[1729867894132,13.64310388,176.21,176.11,15.04320388]
[1729867894330,13.64310388,176.21,176.12,1.5545]
[1729867894535,2.8398,176.15,176.12,1.5545]
[1729867895335,13.64310388,176.18,176.12,1.5545]
[1729867895536,2.8399,176.14,176.12,1.5545]
[1729867895931,13.64310388,176.18,176.12,1.5545]
[1729867896131,13.64310388,176.21,176.12,1.5545]
[1729867896834,13.64310388,176.21,176.13,2.84]
[1729867897235,2.8389,176.2,176.15,2.8397]
[1729867897634,13.64310388,176.27,176.17,13.64310388]
[1729867897837,2.8384,176.24,176.2,2.8388]
[1729867898137,13.64310388,176.27,176.17,13.64310388]
[1729867898333,2.8381,176.25,176.21,2.8387]
[1729867898539,19.10310388,176.29,176.2,3.1011]
[1729867898737,19.10310388,176.29,176.2,8.5611]
[1729867898937,2.8379,176.27,176.21,2.8387]
[1729867899134,19.10310388,176.29,176.2,8.5611]
[1729867899343,13.64310388,176.25,176.16,1.5367]
[1729867899536,13.64310388,176.25,176.16,6.9967]
[1729867899844,13.64310388,176.25,176.16,1.5367]
[1729867900049,13.64310388,176.21,176.12,3.1011]
[1729867900342,13.64310388,176.18,176.12,8.5611]
[1729867900544,2.8397,176.16,176.12,8.5611]
[1729867900942,13.64310388,176.18,176.12,8.5611]
[1729867901237,2.8394,176.18,176.13,2.84]
[1729867902038,2.8395,176.17,176.12,11.4013]
[1729867902235,21.82817002,176.2,176.12,8.5611]
[1729867902541,21.82817002,176.2,176.12,7.0509]
[1729867902943,21.82817002,176.2,176.12,5.46]
[1729867904141,2.84,176.13,176.08,11.4371]
[1729867904343,21.82817002,176.18,176.08,11.4371]
[1729867904646,2.8397,176.15,176.1,2.8405]
[1729867904845,21.82817002,176.18,176.1,2.8405]
[1729867905348,2.8398,176.15,176.1,2.8405]
[1729867905844,5.5,176.22,176.09,21.82817002]
[1729867906043,2.8394,176.17,176.09,21.82817002]
[1729867906442,2.8394,176.17,176.13,2.84]
[1729867908650,5.5,176.22,176.13,2.84]
[1729867908840,2.8396,176.16,176.09,21.82817002]
[1729867909043,5.5,176.22,176.09,21.82817002]
[1729867909243,2.8402,176.13,176.1,5.5]
[1729867909444,21.82817002,176.2,176.1,5.5]
[1729867910046,21.82817002,176.18,176.1,5.5]
[1729867910343,21.82817002,176.18,176.09,5.5]
[1729867910657,27.32817002,176.18,176.09,5.5]
[1729867911145,2.8403,176.12,176.09,5.5]
[1729867912346,27.32817002,176.18,176.09,5.5]
[1729867912550,5.5,176.2,176.09,5.5]
[1729867913247,2.8398,176.15,176.11,2.8403]
[1729867914152,2.8394,176.17,176.13,2.8399]
[1729867914648,21.82817002,176.23,176.09,27.32817002]
[1729867914854,21.82817002,176.2,176.09,5.5]
[1729867915245,21.82817002,176.2,176.1,2.8404]
[1729867915246,2.8394,176.17,176.1,2.8404]
[1729867915446,21.82817002,176.2,176.1,2.8404]
[1729867915650,21.82817002,176.2,176.09,5.5]
[1729867915956,21.82817002,176.2,176.12,2.8401]
[1729867917255,21.82817002,176.2,176.11,2.8403]
[1729867917256,2.8397,176.15,176.11,2.8403]
[1729867917651,21.82817002,176.2,176.09,5.5]
[1729867917958,2.8397,176.15,176.12,2.8401]
[1729867918157,2.8397,176.15,176.09,5.5]
[1729867918757,2.8397,176.15,176.11,2.8403]
[1729867920058,2.8399,176.14,176.11,2.8403]
[1729867920759,5.6763,176.25,176.11,21.82817002]
[1729867920760,21.82817002,176.23,176.11,21.82817002]
[1729867920963,21.82817002,176.23,176.12,1.5742]
[1729867921455,21.82817002,176.23,176.14,2.8398]
[1729867921856,21.82817002,176.21,176.12,1.5742]
[1729867922052,27.32817002,176.24,176.12,1.5742]
[1729867922357,230.08033,176.26,176.15,21.82817002]
[1729867922550,230.08033,176.26,176.17,21.82817002]
[1729867922755,230.08033,176.26,176.18,1.5818]
[1729867923354,230.08033,176.26,176.2,21.82817002]
[1729867923656,230.08033,176.26,176.23,2.8383]
[1729867923860,230.08033,176.26,176.21,7.0006]
[1729867924162,232.91833,176.26,176.23,2.8384]
[1729867925258,230.08033,176.26,176.21,7.0006]
[1729867925965,230.08033,176.26,176.25,2.8381]
[1729867926259,230.08033,176.26,176.25,16.46919973]
[1729867926260,218.25693,176.26,176.25,16.46919973]
[1729867927552,218.25693,176.26,176.23,16.46939973]
[1729867927760,218.25693,176.26,176.23,13.63109973]
[1729867928359,218.25693,176.26,176.25,2.8381]
[1729867930060,218.25693,176.26,176.24,2.8382]
[1729867930261,218.25693,176.26,176.21,7.0006]
[1729867930262,218.25693,176.26,176.22,5.5]
[1729867930962,218.25693,176.26,176.19,5.5]
[1729867931156,13.63109973,176.25,176.18,5.5]
[1729867931359,2.839,176.2,176.18,5.5]
[1729867931556,13.63109973,176.25,176.18,5.5]
[1729867932162,218.25693,176.26,176.22,2.8385]
[1729867932361,218.25693,176.26,176.2,21.79605197]
[1729867932862,221.09493,176.26,176.22,2.8385]
[1729867933368,221.09493,176.26,176.2,21.79605197]
[1729867934067,221.09493,176.26,176.22,2.8385]
[1729867934270,221.09493,176.26,176.23,5.5]
[1729867935063,2.8381,176.25,176.23,5.5]
[1729867935365,218.25693,176.26,176.19,5.48]
[1729867935769,2.8386,176.22,176.19,5.48]
[1729867936363,218.25693,176.26,176.19,5.48]
[1729867936967,2.8383,176.24,176.19,5.48]
[1729867937169,218.25693,176.26,176.19,5.48]
[1729867937874,2.8384,176.24,176.2,2.8389]
[1729867938077,218.25693,176.26,176.19,5.48]
[1729867938568,218.25693,176.26,176.24,2.8381]
[1729867938775,218.25693,176.26,176.2,21.79605197]
[1729867939173,2.8382,176.25,176.22,2.8385]
[1729867939365,218.25693,176.26,176.2,21.79605197]
[1729867939769,2.8383,176.24,176.2,2.8388]
[1729867940075,2.8383,176.24,176.19,5.48]
[1729867940769,2.8383,176.24,176.21,2.8387]
[1729867941271,2.8382,176.25,176.19,5.48]
[1729867941477,2.8382,176.25,176.22,2.8386]
[1729867941681,218.25693,176.26,176.19,5.48]
[1729867941987,240.05298197,176.26,176.17,5.48]
[1729867942174,21.79605197,176.23,176.13,61.34]
[1729867942374,21.79605197,176.23,176.14,5.48]
[1729867942572,21.79605197,176.2,176.13,5.48]
[1729867944075,2.8394,176.17,176.13,8.32]
[1729867944483,2.8401,176.13,176.09,2.8406]
[1729867944779,7.1109,176.22,176.08,5.48]
[1729867944780,21.79605197,176.17,176.08,5.48]
[1729867945088,3.4636,176.16,176.08,5.48]
[1729867945383,2.84,176.13,176.09,2.8407]
[1729867945778,3.4636,176.16,176.08,5.48]
[1729867945984,21.79605197,176.15,176.04,61.3]
[1729867946184,1.6679,176.14,176.04,66.78]
[1729867946383,1.6679,176.14,176.04,5.48]
[1729867946595,2.8407,176.09,176.04,8.3214]
[1729867947395,2.8407,176.09,176.05,2.8413]
[1729867948593,1.6679,176.14,176.04,5.48]
[1729867948897,21.79605197,176.12,176.03,5.48]
[1729867949396,2.841,176.08,176.04,2.8415]
[1729867949895,21.79605197,176.12,176.03,5.48]
[1729867950792,7.1479,176.14,176.03,5.48]
[1729867950793,1.6679,176.14,176.03,5.48]
[1729867951298,2.8405,176.11,176.03,5.48]
[1729867951695,1.6679,176.14,176.03,5.48]
[1729867951898,2.8408,176.09,176.05,2.8413]
[1729867952096,21.79605197,176.12,176.03,5.48]
[1729867952800,21.79605197,176.12,176.03,8.3216]
[1729867953190,1.6679,176.14,176.03,5.48]
[1729867953390,2.8404,176.11,176.06,2.841]
[1729867953598,2.8404,176.11,176.03,5.48]
[1729867953796,1.6679,176.14,176.03,5.48]
[1729867954099,2.8406,176.1,176.03,5.48]
[1729867954302,1.6679,176.14,176.03,5.48]
[1729867954594,21.79605197,176.13,176.03,5.48]
[1729867954997,2.8409,176.08,176.04,2.8415]
[1729867955586,21.79605197,176.13,176.05,2.8413]
[1729867955792,2.8407,176.09,176.05,2.8413]
[1729867956501,2.8411,176.07,176.03,8.3216]
[1729867956796,21.79605197,176.1,176.01,5.48]
[1729867957291,2.8413,176.06,176.02,2.8418]
[1729867957699,21.79605197,176.13,176.02,21.79605197]
[1729867957896,1.6679,176.14,176.02,21.79605197]
[1729867958402,1.6679,176.14,176.05,2.8412]
[1729867958797,1.6679,176.14,176.02,21.79605197]
[1729867959103,21.79605197,176.13,176.01,5.48]
[1729867959494,21.79605197,176.13,176.03,2.8416]
[1729867961304,2.841,176.07,176.03,2.8416]
[1729867962000,2.841,176.07,175.99,2.8422]
[1729867962001,2.8417,176.03,175.99,2.8422]
[1729867962195,21.79605197,176.07,175.97,5.48]
[1729867962590,21.79605197,176.07,175.99,2.8422]
[1729867962793,21.79605197,176.1,175.97,5.48]
[1729867963103,2.8413,176.06,176.02,2.8418]
[1729867963297,21.79605197,176.1,175.98,21.79605197]
[1729867963601,2.8414,176.05,176.01,2.8419]
[1729867964790,2.8414,176.05,175.98,21.79605197]
[1729867964791,2.8411,176.07,176.03,2.8416]
[1729867964994,2.8411,176.07,175.98,21.79605197]
[1729867964995,21.79605197,176.1,175.98,21.79605197]
[1729867965897,21.79605197,176.1,176.01,2.8419]
[1729867965898,2.8414,176.05,176.01,2.8419]
[1729867966203,21.79605197,176.1,176.01,2.8419]
[1729867966698,21.79605197,176.07,175.97,1.5926]
[1729867966900,21.79605197,176.07,175.98,5.46]
[1729867967096,21.79605197,176.1,175.98,27.25605197]
[1729867967296,2.8413,176.06,176.02,2.8417]
[1729867968911,2.8411,176.07,176.03,2.8415]
[1729867969205,21.79605197,176.1,176.03,2.8415]
[1729867969408,2.8409,176.08,176.03,2.8415]
[1729867969609,21.79605197,176.1,176.03,2.8415]
[1729867969801,5.46,176.12,176.04,2.8415]
[1729867970002,2.8401,176.13,176.04,27.25605197]
[1729867970312,3.4636,176.16,176.04,27.25605197]
[1729867970513,2.8397,176.15,176.04,27.25605197]
[1729867970804,2.8397,176.15,176.05,3.3894]
[1729867971012,3.4636,176.16,176.09,2.8406]
[1729867971216,5.46,176.2,176.1,5.46]
[1729867971710,1.6265,176.21,176.1,5.46]
[1729867971904,25.13595197,176.24,176.12,21.79605197]
[1729867972102,2.8389,176.2,176.15,2.8397]
[1729867972707,3.3399,176.24,176.15,5.46]
[1729867973108,3.3399,176.24,176.17,2.8394]
[1729867973318,2.8387,176.22,176.17,2.8394]
[1729867973516,3.3399,176.24,176.15,5.46]
[1729867973713,2.8386,176.22,176.18,2.8392]
[1729867974018,2.8386,176.22,176.15,5.46]
[1729867974313,2.8386,176.22,176.17,2.8393]
[1729867975020,2.8388,176.21,176.17,2.8393]
[1729867976313,2.8388,176.21,176.15,5.46]
[1729867976314,2.8388,176.21,176.16,2.8395]
[1729867976913,2.8394,176.17,176.13,7.8585]
[1729867977113,25.13595197,176.24,176.12,5.46]
[1729867977504,25.13595197,176.24,176.12,8.3002]
[1729867977909,21.79605197,176.22,176.12,5.46]
[1729867978110,2.8396,176.16,176.12,5.46]
[1729867979305,21.79605197,176.22,176.12,5.46]
[1729867980316,2.8397,176.16,176.12,5.46]
[1729867980506,2.8397,176.16,176.11,2.8403]
[1729867982219,21.79605197,176.22,176.1,5.46]
[1729867982220,21.79605197,176.19,176.1,5.46]
[1729867982522,21.79605197,176.19,176.07,5.46]
[1729867982523,21.79605197,176.16,176.07,5.46]
[1729867982919,27.25605197,176.16,176.07,5.46]
[1729867983219,2.8405,176.11,176.07,5.46]
[1729867983523,2.8405,176.11,176.07,8.301]
[1729867985119,21.79605197,176.13,176.03,5.46]
[1729867985521,21.79605197,176.1,176.0,4.981]
[1729867985822,2.8413,176.06,176.01,8.3019]
[1729867986022,2.8413,176.06,176.01,5.46]
[1729867986618,21.79605197,176.13,176.01,5.46]
[1729867986823,30.62345197,176.15,176.01,27.25605197]
[1729867987321,2.8404,176.11,176.05,2.8413]
[1729867987510,30.62345197,176.15,176.05,2.8413]
[1729867988023,2.8408,176.09,176.05,2.8413]
[1729867988422,30.62345197,176.15,176.04,2.8414]
[1729867988627,21.79605197,176.13,176.01,27.25605197]
[1729867988824,21.79605197,176.13,176.01,5.46]
[1729867989027,2.8408,176.09,176.01,5.46]
[1729867989521,2.8409,176.08,176.04,2.8414]
[1729867990816,21.79605197,176.1,176.0,4.981]
[1729867991018,21.79605197,176.1,176.02,5.46]
[1729867991415,21.79605197,176.1,176.0,4.981]
[1729867991615,21.79605197,176.08,175.97,5.46]
[1729867992019,2.8418,176.03,175.99,2.8422]
[1729867992622,2.8418,176.03,176.0,2.8421]
[1729867992823,2.8418,176.03,175.97,5.46]
[1729867993028,21.79605197,176.08,175.97,5.46]
[1729867993323,1.7389,176.07,175.97,8.3025]
[1729867993531,2.8421,176.01,175.97,8.3025]
[1729867993832,21.79605197,176.02,175.95,2.8428]
[1729867994022,2.8423,176.0,175.93,5.46]
[1729867994227,21.79605197,176.02,175.93,5.46]
[1729867994433,21.79605197,176.02,175.96,2.8428]
[1729867994623,2.8421,176.01,175.96,2.8428]
[1729867994824,21.79605197,176.02,175.96,2.8428]
[1729867995330,2.8423,176.0,175.96,2.8428]
[1729867996319,2.8417,176.03,175.93,27.25605197]
[1729867996521,8.8736,176.07,175.98,2.8423]
[1729867997321,8.8736,176.07,176.0,2.842]
[1729867997620,8.8736,176.07,175.94,1.6231]
[1729867997621,8.8736,176.07,175.98,5.46]
[1729867998027,2.8421,176.01,175.98,5.46]
[1729867998228,21.79605197,176.05,175.98,5.46]
[1729867998434,21.79605197,176.05,175.94,7.0831]
[1729867998632,2.8423,175.99,175.95,2.8428]
[1729867999031,21.79605197,176.02,175.93,5.46]
[1729867999535,21.79605197,176.02,175.91,5.46]
[1729867999726,21.79605197,175.99,175.89,4.9758]
[1729868000135,5.46,176.01,175.92,2.8434]
[1729868000136,2.8426,175.98,175.92,2.8434]
[1729868000331,5.46,176.01,175.92,2.8434]
[1729868001332,21.79605197,175.99,175.89,4.9758]
[1729868001529,21.79605197,175.96,175.88,5.46]
[1729868001730,2.8433,175.93,175.86,5.46]
[1729868002040,21.79605197,175.96,175.87,2.8442]
[1729868002427,21.79605197,175.94,175.83,5.46]
[1729868002733,21.79605197,175.94,175.8,21.79605197]
[1729868002933,2.844,175.89,175.84,2.8447]
[1729868003138,21.79605197,175.94,175.81,5.46]
[1729868003836,21.79605197,175.96,175.83,21.79605197]
[1729868004037,21.79605197,175.96,175.81,5.46]
[1729868004038,3.2532,175.98,175.85,21.79605197]
[1729868004242,2.8428,175.96,175.91,2.8436]
[1729868004927,2.8426,175.97,175.93,2.8433]
[1729868005126,1.6552,176.0,175.88,27.25605197]
[1729868005543,2.8428,175.96,175.91,2.8435]
[1729868005937,2.8428,175.96,175.88,27.25605197]
[1729868006135,2.8428,175.96,175.92,2.8434]
[1729868008138,2.8428,175.96,175.88,27.25605197]
[1729868008451,2.8428,175.96,175.91,2.8435]
[1729868008639,2.8426,175.98,175.91,21.79605197]
[1729868008943,2.8426,175.98,175.93,2.8431]
[1729868009147,5.46,176.02,175.93,2.8431]
[1729868009338,2.8427,175.97,175.93,2.8431]
[1729868009740,2.8427,175.97,175.92,2.8434]
[1729868010140,2.8428,175.96,175.92,2.8434]
[1729868012737,5.46,176.02,175.9,2.8437]
[1729868012738,27.25605197,176.02,175.9,2.8437]
[1729868012934,27.25605197,176.02,175.89,21.79605197]
[1729868013539,2.843,175.95,175.89,21.79605197]
[1729868014850,2.8425,175.98,175.95,2.8429]
[1729868015149,3.3688,176.03,175.95,2.8429]
[1729868015846,2.8426,175.98,175.94,2.843]
[1729868018147,2.8421,176.01,175.97,2.8425]
[1729868018350,218.53333,176.05,175.97,2.8425]
[1729868018548,218.53333,176.05,175.95,21.79605197]
[1729868019054,21.79605197,176.03,175.93,5.46]
[1729868019263,21.79605197,176.03,175.92,5.46]
[1729868019552,21.79605197,176.03,175.88,1.9439]
[1729868019553,2.8433,175.94,175.91,5.46]
[1729868019851,21.79605197,176.0,175.91,5.46]
[1729868020046,2.8432,175.94,175.91,5.46]
[1729868020645,27.50515197,176.0,175.89,2.8439]
[1729868020950,21.79605197,175.97,175.89,2.8439]
[1729868021151,2.8434,175.93,175.89,2.8439]
[1729868021752,2.8434,175.92,175.89,2.8439]
[1729868022356,2.8439,175.9,175.87,2.8442]
[1729868022555,21.79605197,175.97,175.86,5.46]
[1729868022863,2.8435,175.92,175.89,2.8439]
[1729868023048,21.79605197,175.97,175.86,5.46]
[1729868023554,2.8432,175.94,175.87,2.8442]
[1729868023753,21.79605197,175.97,175.87,2.8442]
[1729868024156,2.8437,175.91,175.87,2.8442]
[1729868025252,2.8437,175.91,175.88,2.844]
[1729868025551,21.79605197,175.97,175.86,5.46]
[1729868025750,32.96515197,176.0,175.86,5.46]
[1729868025953,32.96515197,176.0,175.87,23.77235197]
[1729868027062,32.96515197,176.0,175.92,2.8433]
[1729868027657,11.1691,176.0,175.87,26.65460977]
[1729868027857,11.1691,176.0,175.88,5.46]
[1729868028158,11.1691,176.0,175.93,2.8431]
[1729868028159,2.8427,175.97,175.93,2.8431]
[1729868028467,11.1691,176.0,175.93,2.8431]
[1729868028664,2.8428,175.97,175.93,2.8431]
[1729868030067,2.8428,175.96,175.93,2.8431]
[1729868030563,11.1691,176.0,175.93,2.8431]
[1729868031763,2.8427,175.97,175.93,2.8431]
[1729868031964,5.46,176.04,175.93,5.46]
[1729868032163,2.8419,176.02,175.93,27.25605197]